Workbook

Sheet 獲利率分析
B2: 客戶獲利率分析
B3: 2013年1月20日 | D3: 公司名稱
B6: 客戶活動 | C6: 客戶 1 | D6: 客戶 2 | E6: 客戶 3 | F6: 整體
B7: 活動客戶數量 — 開始期間 | C7: 5 | D7: 8 | E7: 8 | F7: =SUM(C7:E7) -> 21
B8: 新增客戶數量 | C8: 2 | D8: 4 | E8: 4 | F8: =SUM(C8:E8) -> 10
B9: 喪失 / 終止客戶數量 | C9: (1) | D9: (2) | E9: (2) | F9: (5)
B10: 活動客戶數量 — 結束期間 | C10: =SUBTOTAL(109,獲利率分析!$C$7:$C$9) -> 6 | D10: =SUBTOTAL(109,獲利率分析!$D$7:$D$9) -> 10 | E10: =SUBTOTAL(109,獲利率分析!$E$7:$E$9) -> 10 | F10: 26
B12: 獲利率分析
B13: 個別客戶群營收 | C13: NT$45,000,000 | D13: NT$54,000,000 | E13: NT$75,000,000 | F13: =SUM(獲利率分析!$C13:$E13) -> NT$174,000,000
B14: 加權 | C14: =C13/$F$13 -> 25.9% | D14: =D13/$F$13 -> 31.0% | E14: 43.1% | F14: =SUM(C14:E14) -> 100.0%
B16: 銷貨成本
B17: 持續客服成本 | C17: NT$30,000,000 | D17: NT$42,000,000 | E17: NT$42,000,000 | F17: =SUM(獲利率分析!$C17:$E17) -> NT$114,000,000
B18: 其他直接客戶成本 | C18: 6,000,000 | D18: 3,000,000 | E18: 3,000,000 | F18: =SUM(獲利率分析!$C18:$E18) -> 12,000,000
B19: 總銷售成本 | C19: =SUBTOTAL(109,獲利率分析!$C$17:$C$18) -> 36,000,000 | D19: =SUBTOTAL(109,獲利率分析!$D$17:$D$18) -> 45,000,000 | E19: =SUBTOTAL(109,獲利率分析!$E$17:$E$18) -> 45,000,000 | F19: =SUBTOTAL(109,獲利率分析!$F$17:$F$18) -> 126,000,000
B20: 總利潤 | C20: =C13-獲利率分析!$C$19 -> NT$9,000,000 | D20: =D13-獲利率分析!$D$19 -> NT$9,000,000 | E20: =E13-獲利率分析!$E$19 -> NT$30,000,000 | F20: =F13-獲利率分析!$F$19 -> NT$48,000,000
B21: 加權 | C21: =MAX(0,MIN(1,C20/$F$20)) -> 18.8% | D21: =MAX(0,MIN(1,D20/$F$20)) -> 18.8% | E21: 62.5% | F21: =SUM(獲利率分析!$C21:$E21) -> 100.0%
B23: 其他成本
B24: 客戶獲得 | C24: NT$3,150,000 | D24: NT$3,600,000 | E24: NT$7,050,000 | F24: =SUM(獲利率分析!$C24:$E24) -> NT$13,800,000
B25: 客戶行銷 | C25: 4,500,000 | D25: 3,750,000 | E25: 8,250,000 | F25: =SUM(獲利率分析!$C25:$E25) -> NT$16,500,000
B26: 客戶終止 | C26: 2,400,000 | D26: 5,700,000 | E26: 4,200,000 | F26: =SUM(獲利率分析!$C26:$E26) -> NT$12,300,000
B27: 其他客戶總成本 | C27: =SUBTOTAL(109,獲利率分析!$C$24:$C$26) -> 10,050,000 | D27: =SUBTOTAL(109,獲利率分析!$D$24:$D$26) -> 13,050,000 | E27: =SUBTOTAL(109,獲利率分析!$E$24:$E$26) -> 19,500,000 | F27: =SUBTOTAL(109,獲利率分析!$F$24:$F$26) -> NT$42,600,000
B29: 個別客戶群利潤 | C29: =C20-C27 -> (NT$1,050,000) | D29: =D20-D27 -> (NT$4,050,000) | E29: =E20-E27 -> NT$10,500,000 | F29: =F20-獲利率分析!$F$27 -> NT$5,400,000
B30: 加權 | C30: =MAX(0,MIN(1,C29/$F$29)) -> 0.0% | D30: =MAX(0,MIN(1,D29/$F$29)) -> 0.0% | E30: 100.0% | F30: =SUM(獲利率分析!$C30:$E30) -> 100.0%
B32: 摘要評量
B33: 每位獲得客戶平均成本 | C33: =C24/C8 -> NT$1,575,000 | D33: =D24/D8 -> NT$900,000 | E33: =E24/E8 -> NT$1,762,500
B34: 每位終止客戶平均成本 | C34: =-C26/C9 -> NT$2,400,000 | D34: =-D26/D9 -> NT$2,850,000 | E34: =-E26/E9 -> NT$2,100,000
B35: 每位活動客戶平均行銷成本 | C35: =C25/獲利率分析!$C$10 -> NT$750,000 | D35: =D25/獲利率分析!$D$10 -> NT$375,000 | E35: =E25/獲利率分析!$E$10 -> NT$825,000
B36: 每位客戶平均盈虧 | C36: =C29/獲利率分析!$C$10 -> (NT$175,000.00) | D36: =D29/獲利率分析!$D$10 -> (NT$405,000.00) | E36: =E29/獲利率分析!$E$10 -> NT$1,050,000.00

Sheet 摘要評量表
B2: 個別客戶摘要評量
B3: =ReportDate -> 2013年1月20日 | R3: =CompanyName -> 公司名稱
